[Event "*** Titled Tuesday 3|2 Blitz"]
[Site "Chess.com"]
[Date "2017.03.07"]
[Round "1"]
[White "poummba"]
[Black "Noukii"]
[Result "1/2-1/2"]
[WhiteElo "2364"]
[BlackElo "2670"]
[TimeControl "180+2"]
[EndTime "13:11:26 PST"]
[Termination "Game drawn - insufficient material"]

1. e4 {[%clk 0:03:02]} 1... e5 {[%clk 0:02:59]} 2. Nf3 {[%clk 0:03:01.1]} 2...
Nc6 {[%clk 0:03:00.2]} 3. Bc4 {[%clk 0:03:02.4]} 3... Nf6 {[%clk 0:02:59.8]} 4.
O-O {[%clk 0:03:03.6]} 4... Be7 {[%clk 0:02:45.6]} 5. d4 {[%clk 0:03:03.1]} 5...
d6 {[%clk 0:02:46.9]} 6. dxe5 {[%clk 0:02:50.6]} 6... Nxe5 {[%clk 0:02:46.4]} 7.
Nxe5 {[%clk 0:02:51.2]} 7... dxe5 {[%clk 0:02:48.3]} 8. Qxd8+ {[%clk 0:02:52.3]}
8... Bxd8 {[%clk 0:02:50.2]} 9. Nd2 {[%clk 0:02:38.1]} 9... c6 {[%clk
0:02:41.2]} 10. Re1 {[%clk 0:02:36.2]} 10... O-O {[%clk 0:02:33.9]} 11. Nf3
{[%clk 0:02:37.1]} 11... Re8 {[%clk 0:02:32.7]} 12. Ng5 {[%clk 0:02:34]} 12...
Re7 {[%clk 0:02:30.4]} 13. Bd2 {[%clk 0:01:42.5]} 13... h6 {[%clk 0:02:28.2]}
14. Nf3 {[%clk 0:01:43.8]} 14... Bb6 {[%clk 0:02:20.9]} 15. h3 {[%clk
0:01:37.6]} 15... a5 {[%clk 0:02:05.4]} 16. Bc3 {[%clk 0:01:35.5]} 16... Nd7
{[%clk 0:02:03.3]} 17. a4 {[%clk 0:01:32.4]} 17... Bc5 {[%clk 0:01:59.9]} 18.
Rad1 {[%clk 0:01:31.2]} 18... Re8 {[%clk 0:01:52.6]} 19. Rd3 {[%clk 0:01:15.8]}
19... Bb4 {[%clk 0:01:48.8]} 20. Red1 {[%clk 0:01:13.4]} 20... Bxc3 {[%clk
0:01:36.9]} 21. Rxc3 {[%clk 0:01:11.1]} 21... Nb6 {[%clk 0:01:14.7]} 22. Bb3
{[%clk 0:01:08]} 22... Be6 {[%clk 0:01:13.6]} 23. Bxe6 {[%clk 0:00:59.5]} 23...
Rxe6 {[%clk 0:01:14.4]} 24. b3 {[%clk 0:01:00.9]} 24... Kf8 {[%clk 0:01:03.9]}
25. Rc5 {[%clk 0:01:01.5]} 25... f6 {[%clk 0:01:04.8]} 26. Rd3 {[%clk
0:00:49.8]} 26... Re7 {[%clk 0:00:55.5]} 27. Nd2 {[%clk 0:00:46.8]} 27... Rd7
{[%clk 0:00:29.7]} 28. Rxd7 {[%clk 0:00:47.4]} 28... Nxd7 {[%clk 0:00:31.6]} 29.
Rc3 {[%clk 0:00:48.8]} 29... Ke7 {[%clk 0:00:31.8]} 30. Nc4 {[%clk 0:00:46.7]}
30... g6 {[%clk 0:00:30.3]} 31. Rd3 {[%clk 0:00:42.8]} 31... Nc5 {[%clk
0:00:30.9]} 32. Re3 {[%clk 0:00:38.2]} 32... b5 {[%clk 0:00:32.3]} 33. axb5
{[%clk 0:00:38.5]} 33... cxb5 {[%clk 0:00:34.2]} 34. Nb6 {[%clk 0:00:40]} 34...
Ra6 {[%clk 0:00:33.3]} 35. Nd5+ {[%clk 0:00:40]} 35... Kf7 {[%clk 0:00:34.9]}
36. f3 {[%clk 0:00:37.8]} 36... b4 {[%clk 0:00:34.5]} 37. Re1 {[%clk 0:00:36]}
37... Ne6 {[%clk 0:00:31]} 38. Ra1 {[%clk 0:00:34.7]} 38... Nc5 {[%clk 0:00:26]}
39. Kf2 {[%clk 0:00:31]} 39... f5 {[%clk 0:00:27.5]} 40. Ke3 {[%clk 0:00:31.4]}
40... h5 {[%clk 0:00:24.4]} 41. h4 {[%clk 0:00:30.9]} 41... f4+ {[%clk
0:00:18.1]} 42. Kd2 {[%clk 0:00:29.1]} 42... g5 {[%clk 0:00:17]} 43. hxg5 {[%clk
0:00:29.5]} 43... Kg6 {[%clk 0:00:18.5]} 44. Kc1 {[%clk 0:00:11.3]} 44... Kxg5
{[%clk 0:00:19.6]} 45. Kb2 {[%clk 0:00:13]} 45... Kh6 {[%clk 0:00:18.9]} 46. Rd1
{[%clk 0:00:12.6]} 46... Rg6 {[%clk 0:00:19.4]} 47. Rd2 {[%clk 0:00:13.9]} 47...
Ne6 {[%clk 0:00:20.9]} 48. Nb6 {[%clk 0:00:11.2]} 48... Nd4 {[%clk 0:00:16.7]}
49. Nc4 {[%clk 0:00:12.4]} 49... a4 {[%clk 0:00:17]} 50. bxa4 {[%clk 0:00:11.6]}
50... Ra6 {[%clk 0:00:16.2]} 51. Nxe5 {[%clk 0:00:12.2]} 51... Ne6 {[%clk
0:00:15.4]} 52. Nc4 {[%clk 0:00:07.1]} 52... Kg5 {[%clk 0:00:13.2]} 53. Rd5+
{[%clk 0:00:05.1]} 53... Kh4 {[%clk 0:00:14.1]} 54. Rd6 {[%clk 0:00:06.3]} 54...
Rxd6 {[%clk 0:00:13.5]} 55. Nxd6 {[%clk 0:00:07.6]} 55... Kg3 {[%clk 0:00:15.4]}
56. a5 {[%clk 0:00:06.1]} 56... Kxg2 {[%clk 0:00:16.9]} 57. a6 {[%clk
0:00:07.6]} 57... h4 {[%clk 0:00:18.4]} 58. a7 {[%clk 0:00:08.6]} 58... Nc7
{[%clk 0:00:19.9]} 59. e5 {[%clk 0:00:02.1]} 59... h3 {[%clk 0:00:21.3]} 60. e6
{[%clk 0:00:04]} 60... h2 {[%clk 0:00:22.9]} 61. e7 {[%clk 0:00:05.9]} 61...
h1=Q {[%clk 0:00:24.7]} 62. e8=Q {[%clk 0:00:07.8]} 62... Qg1 {[%clk 0:00:23.3]}
63. Qg8+ {[%clk 0:00:08.2]} 63... Kf2 {[%clk 0:00:24.2]} 64. Qxg1+ {[%clk
0:00:10.1]} 64... Kxg1 {[%clk 0:00:26.1]} 65. Nc4 {[%clk 0:00:10.2]} 65... Kf2
{[%clk 0:00:27]} 66. Nd2 {[%clk 0:00:10.2]} 66... Ke3 {[%clk 0:00:28.2]} 67. Kc1
{[%clk 0:00:10.2]} 67... Ke2 {[%clk 0:00:29.7]} 68. Nc4 {[%clk 0:00:04.8]} 68...
Kxf3 {[%clk 0:00:31.1]} 69. Kd2 {[%clk 0:00:06.3]} 69... Ke4 {[%clk 0:00:31.1]}
70. Ke2 {[%clk 0:00:06.1]} 70... Kd4 {[%clk 0:00:32.6]} 71. Nb6 {[%clk
0:00:05.9]} 71... Kc3 {[%clk 0:00:33.3]} 72. a8=Q {[%clk 0:00:07.3]} 72... Nxa8
{[%clk 0:00:34]} 73. Nxa8 {[%clk 0:00:09.2]} 73... Kxc2 {[%clk 0:00:35.9]} 74.
Nb6 {[%clk 0:00:09.5]} 74... b3 {[%clk 0:00:36.9]} 75. Na4 {[%clk 0:00:10.6]}
75... Kb1 {[%clk 0:00:38.4]} 76. Kf3 {[%clk 0:00:10.9]} 76... Ka2 {[%clk
0:00:40.3]} 77. Nc3+ {[%clk 0:00:11]} 77... Ka3 {[%clk 0:00:42.2]} 78. Kxf4
{[%clk 0:00:11.6]} 78... b2 {[%clk 0:00:44.1]} 79. Ke3 {[%clk 0:00:11.5]} 79...
Kb3 {[%clk 0:00:46]} 80. Nb1 {[%clk 0:00:12.2]} 80... Kc2 {[%clk 0:00:47.4]} 81.
Na3+ {[%clk 0:00:13.5]} 81... Kb3 {[%clk 0:00:49.3]} 82. Nb1 {[%clk 0:00:14.7]}
82... Ka2 {[%clk 0:00:51.2]} 83. Nc3+ {[%clk 0:00:15.9]} 83... Kb3 {[%clk
0:00:53.1]} 84. Nb1 {[%clk 0:00:17.1]} 84... Kc2 {[%clk 0:00:55]} 85. Na3+
{[%clk 0:00:18.4]} 85... Kc1 {[%clk 0:00:55.4]} 86. Kd3 {[%clk 0:00:19.2]} 86...
b1=Q+ {[%clk 0:00:56.7]} 87. Nxb1 {[%clk 0:00:19.9]} 1/2-1/2

[Event "*** Titled Tuesday 3|2 Blitz"]
[Site "Chess.com"]
[Date "2017.03.07"]
[Round "1"]
[White "Shivagami"]
[Black "Gergo85"]
[Result "0-1"]
[WhiteElo "1952"]
[BlackElo "2427"]
[TimeControl "180+2"]
[EndTime "13:11:36 PST"]
[Termination "Gergo85 won on time"]

1. d4 {[%clk 0:02:11.7]} 1... f5 {[%clk 0:02:57.5]} 2. Nf3 {[%clk 0:02:10.2]}
2... Nf6 {[%clk 0:02:58.4]} 3. g3 {[%clk 0:02:08.9]} 3... g6 {[%clk 0:02:59.8]}
4. Bg2 {[%clk 0:02:09.6]} 4... Bg7 {[%clk 0:03:01.5]} 5. O-O {[%clk 0:02:10.5]}
5... O-O {[%clk 0:03:02.4]} 6. b3 {[%clk 0:02:01.3]} 6... a5 {[%clk 0:03:00.8]}
7. a4 {[%clk 0:02:00]} 7... d5 {[%clk 0:02:43.1]} 8. Ba3 {[%clk 0:01:44.8]} 8...
Ne4 {[%clk 0:02:35.8]} 9. Ne5 {[%clk 0:01:17.5]} 9... Nd7 {[%clk 0:02:21.7]} 10.
f4 {[%clk 0:01:04.3]} 10... c6 {[%clk 0:01:51.3]} 11. c4 {[%clk 0:00:37.7]}
11... Nxe5 {[%clk 0:01:40.6]} 12. dxe5 {[%clk 0:00:30]} 12... Qb6+ {[%clk
0:01:34]} 13. c5 {[%clk 0:00:19.1]} 13... Nxc5 {[%clk 0:01:04.1]} 14. Qd4 {[%clk
0:00:20.3]} 14... Nxa4 {[%clk 0:01:05.2]} 15. Qxb6 {[%clk 0:00:18.8]} 15... Nxb6
{[%clk 0:01:07.1]} 16. Bxe7 {[%clk 0:00:19.6]} 16... Re8 {[%clk 0:01:08.8]} 17.
Bc5 {[%clk 0:00:20.3]} 17... Nd7 {[%clk 0:01:10]} 18. Bd4 {[%clk 0:00:16.1]}
18... Bf8 {[%clk 0:01:10]} 19. Bc3 {[%clk 0:00:15.1]} 19... Bc5+ {[%clk
0:00:53.8]} 20. Kh1 {[%clk 0:00:13.7]} 20... Bb6 {[%clk 0:00:54.9]} 21. b4
{[%clk 0:00:14.3]} 21... a4 {[%clk 0:00:55.3]} 22. Nd2 {[%clk 0:00:13]} 22...
Nf8 {[%clk 0:00:55.8]} 23. Ra3 {[%clk 0:00:12.1]} 23... Bd8 {[%clk 0:00:36.5]}
24. Rfa1 {[%clk 0:00:12.4]} 24... b5 {[%clk 0:00:37.7]} 25. Nf3 {[%clk 0:00:11]}
25... Ne6 {[%clk 0:00:37.8]} 26. Nd4 {[%clk 0:00:10.8]} 26... Nxd4 {[%clk
0:00:36.9]} 27. Bxd4 {[%clk 0:00:12.5]} 27... Bd7 {[%clk 0:00:36.6]} 28. Bc5
{[%clk 0:00:11.9]} 28... Be7 {[%clk 0:00:36.9]} 29. Rc3 {[%clk 0:00:12.1]} 29...
Bxc5 {[%clk 0:00:37.5]} 30. Rxc5 {[%clk 0:00:13.1]} 30... Kf7 {[%clk 0:00:38.4]}
31. Ra3 {[%clk 0:00:13.7]} 31... Ra7 {[%clk 0:00:39]} 32. Kg1 {[%clk 0:00:14.1]}
32... g5 {[%clk 0:00:39.4]} 33. e3 {[%clk 0:00:14]} 33... Kg6 {[%clk 0:00:39]}
34. Kf1 {[%clk 0:00:13.2]} 34... h5 {[%clk 0:00:39.7]} 35. h4 {[%clk 0:00:08.9]}
35... gxh4 {[%clk 0:00:40]} 36. gxh4 {[%clk 0:00:09.2]} 36... Kf7 {[%clk
0:00:41.2]} 37. Kf2 {[%clk 0:00:09.1]} 37... Rg8 {[%clk 0:00:41.3]} 38. Bf3
{[%clk 0:00:10.6]} 38... Rg4 {[%clk 0:00:38.8]} 39. Bxg4 {[%clk 0:00:10.3]}
39... fxg4 {[%clk 0:00:40.7]} 40. Kg3 {[%clk 0:00:11.2]} 40... Ra6 {[%clk
0:00:41.4]} 41. Rc1 {[%clk 0:00:10.2]} 41... Kg6 {[%clk 0:00:41.3]} 42. Re1
{[%clk 0:00:08.9]} 42... Bf5 {[%clk 0:00:42.3]} 43. Rc1 {[%clk 0:00:08.7]} 43...
Kf7 {[%clk 0:00:39.9]} 44. Rac3 {[%clk 0:00:08.8]} 44... Bd7 {[%clk 0:00:40.9]}
45. Ra3 {[%clk 0:00:09.9]} 45... Ke7 {[%clk 0:00:42.2]} 46. Re1 {[%clk
0:00:09.6]} 46... Bf5 {[%clk 0:00:43.4]} 47. Rc1 {[%clk 0:00:10.4]} 47... Kd7
{[%clk 0:00:44.7]} 48. Rcc3 {[%clk 0:00:09.4]} 48... Be4 {[%clk 0:00:45.8]} 49.
Rc1 {[%clk 0:00:10]} 49... Bf3 {[%clk 0:00:45.3]} 50. Rcc3 {[%clk 0:00:10.6]}
50... Be2 {[%clk 0:00:46.1]} 51. Rc1 {[%clk 0:00:10.1]} 51... Bc4 {[%clk
0:00:47]} 52. e4 {[%clk 0:00:11.1]} 52... d4 {[%clk 0:00:42.2]} 53. Rd1 {[%clk
0:00:10.8]} 53... d3 {[%clk 0:00:43.5]} 54. f5 {[%clk 0:00:10.6]} 54... Ke7
{[%clk 0:00:43.9]} 55. f6+ {[%clk 0:00:08.6]} 55... Ke6 {[%clk 0:00:44.9]} 56.
Rd2 {[%clk 0:00:09.8]} 56... Kxe5 {[%clk 0:00:41.2]} 57. Rd1 {[%clk 0:00:05.4]}
57... Kxf6 {[%clk 0:00:41]} 58. Kf4 {[%clk 0:00:03.6]} 58... Ra8 {[%clk
0:00:39.2]} 59. e5+ {[%clk 0:00:04]} 59... Ke6 {[%clk 0:00:40.4]} 60. Ke4 {[%clk
0:00:04.9]} 60... Rf8 {[%clk 0:00:39.4]} 61. Re1 {[%clk 0:00:04.6]} 61... Rf3
{[%clk 0:00:34.5]} 62. Rd1 {[%clk 0:00:04.9]} 62... Rf5 {[%clk 0:00:34.1]} 63.
Kd4 {[%clk 0:00:03.6]} 63... Rxe5 {[%clk 0:00:35.1]} 64. Rd2 {[%clk 0:00:04.1]}
64... Rd5+ {[%clk 0:00:35]} 65. Ke4 {[%clk 0:00:03.5]} 65... Kd6 {[%clk
0:00:33.9]} 66. Ra1 {[%clk 0:00:04]} 66... Re5+ {[%clk 0:00:34.3]} 67. Kd4
{[%clk 0:00:05.1]} 67... Rf5 {[%clk 0:00:31.9]} 68. Re1 {[%clk 0:00:04.1]} 68...
Rf4+ {[%clk 0:00:33.1]} 69. Kc3 {[%clk 0:00:03.6]} 69... g3 {[%clk 0:00:30.3]}
70. Rg1 {[%clk 0:00:03.8]} 70... Rg4 {[%clk 0:00:28.8]} 71. Kb2 {[%clk
0:00:02.9]} 71... c5 {[%clk 0:00:29.8]} 72. Kc3 {[%clk 0:00:03]} 72... Kd5
{[%clk 0:00:28.6]} 0-1

[Event "*** Titled Tuesday 3|2 Blitz"]
[Site "Chess.com"]
[Date "2017.03.07"]
[Round "1"]
[White "Jadro9"]
[Black "Alexander_Moskalenko"]
[Result "0-1"]
[WhiteElo "2382"]
[BlackElo "2716"]
[TimeControl "180+2"]
[EndTime "13:13:13 PST"]
[Termination "Alexander_Moskalenko won by resignation"]

1. e4 {[%clk 0:03:02]} 1... c6 {[%clk 0:02:57.6]} 2. d4 {[%clk 0:03:01.7]} 2...
d5 {[%clk 0:02:59.1]} 3. Nc3 {[%clk 0:02:56.3]} 3... dxe4 {[%clk 0:02:59.8]} 4.
Nxe4 {[%clk 0:02:57.5]} 4... Nf6 {[%clk 0:03:01.7]} 5. Nxf6+ {[%clk 0:02:51.8]}
5... exf6 {[%clk 0:03:03.6]} 6. Nf3 {[%clk 0:02:53]} 6... Bd6 {[%clk 0:03:04.6]}
7. Be3 {[%clk 0:02:49.9]} 7... O-O {[%clk 0:03:06]} 8. Bd3 {[%clk 0:02:50.4]}
8... Re8 {[%clk 0:03:06.6]} 9. O-O {[%clk 0:02:50.5]} 9... Nd7 {[%clk
0:03:08.1]} 10. h3 {[%clk 0:02:49.2]} 10... Nf8 {[%clk 0:03:09.4]} 11. Nh4
{[%clk 0:02:45.6]} 11... Qa5 {[%clk 0:03:00]} 12. c4 {[%clk 0:02:42.4]} 12...
Ng6 {[%clk 0:02:59.8]} 13. Nxg6 {[%clk 0:02:42.3]} 13... hxg6 {[%clk 0:03:01.7]}
14. a3 {[%clk 0:02:33.1]} 14... Qc7 {[%clk 0:02:53.7]} 15. b4 {[%clk 0:02:32.6]}
15... Be6 {[%clk 0:02:53.6]} 16. Rc1 {[%clk 0:02:32.6]} 16... Rad8 {[%clk
0:02:53.7]} 17. Qf3 {[%clk 0:02:25]} 17... f5 {[%clk 0:02:54.9]} 18. Rfe1 {[%clk
0:02:22.8]} 18... a6 {[%clk 0:02:36.8]} 19. Kh1 {[%clk 0:02:15.9]} 19... Be7
{[%clk 0:02:28.7]} 20. d5 {[%clk 0:02:00.3]} 20... Bc8 {[%clk 0:02:28.6]} 21.
Bb1 {[%clk 0:01:29.9]} 21... cxd5 {[%clk 0:02:23.5]} 22. cxd5 {[%clk 0:01:30]}
22... Qd6 {[%clk 0:02:24.7]} 23. Ba2 {[%clk 0:01:31]} 23... Qf6 {[%clk
0:02:18.1]} 24. Bc5 {[%clk 0:01:25.2]} 24... Bd6 {[%clk 0:02:17.3]} 25. Bxd6
{[%clk 0:01:22.6]} 25... Qxd6 {[%clk 0:02:17.5]} 26. Qc3 {[%clk 0:01:19.1]}
26... Rxe1+ {[%clk 0:02:14]} 27. Rxe1 {[%clk 0:01:19.3]} 27... Kf8 {[%clk
0:02:15.9]} 28. Kg1 {[%clk 0:01:16.7]} 28... Bd7 {[%clk 0:02:12.5]} 29. Qd4
{[%clk 0:01:06.6]} 29... g5 {[%clk 0:02:04.5]} 30. h4 {[%clk 0:00:57.8]} 30...
g4 {[%clk 0:01:46.1]} 31. h5 {[%clk 0:00:58.8]} 31... Re8 {[%clk 0:01:43.6]} 32.
Rxe8+ {[%clk 0:00:58.4]} 32... Bxe8 {[%clk 0:01:45.5]} 33. Qe3 {[%clk
0:00:40.6]} 33... b6 {[%clk 0:01:43.5]} 34. Qc3 {[%clk 0:00:38.8]} 34... f6
{[%clk 0:01:41.6]} 35. Bc4 {[%clk 0:00:38.4]} 35... Bxh5 {[%clk 0:01:39]} 36.
Qd3 {[%clk 0:00:21.4]} 36... b5 {[%clk 0:01:38.6]} 37. Bb3 {[%clk 0:00:22.3]}
37... Bg6 {[%clk 0:01:28.1]} 38. Qc3 {[%clk 0:00:22.5]} 38... Be8 {[%clk
0:01:25.3]} 39. Qc5 {[%clk 0:00:19.2]} 39... Ke7 {[%clk 0:01:25.8]} 40. Qa7+
{[%clk 0:00:20]} 40... Bd7 {[%clk 0:01:25.8]} 41. Qe3+ {[%clk 0:00:21.5]} 41...
Kf7 {[%clk 0:01:24.7]} 42. Qc3 {[%clk 0:00:22.2]} 42... g5 {[%clk 0:01:23.4]}
43. Qc5 {[%clk 0:00:22.6]} 43... Ke7 {[%clk 0:01:24.4]} 44. Qe3+ {[%clk
0:00:23.7]} 44... Kd8 {[%clk 0:01:00.7]} 45. Qc5 {[%clk 0:00:21.2]} 45... Qxc5
{[%clk 0:01:01.8]} 46. bxc5 {[%clk 0:00:21.8]} 46... Kc7 {[%clk 0:01:03.7]} 47.
Kf1 {[%clk 0:00:21.7]} 47... f4 {[%clk 0:01:04.5]} 48. Ke2 {[%clk 0:00:22.7]}
48... Bf5 {[%clk 0:01:05.2]} 49. g3 {[%clk 0:00:15.3]} 49... fxg3 {[%clk
0:01:04.8]} 50. fxg3 {[%clk 0:00:16.4]} 50... a5 {[%clk 0:01:02.3]} 51. Ke3
{[%clk 0:00:17.5]} 51... Bg6 {[%clk 0:00:57]} 52. Kd4 {[%clk 0:00:18.6]} 52...
Kd7 {[%clk 0:00:43.2]} 53. d6 {[%clk 0:00:18]} 53... Bf5 {[%clk 0:00:39.2]} 54.
Bd1 {[%clk 0:00:14.1]} 54... Be6 {[%clk 0:00:35.7]} 55. a4 {[%clk 0:00:13]}
55... b4 {[%clk 0:00:33.2]} 56. Be2 {[%clk 0:00:14.3]} 56... Bb3 {[%clk
0:00:22.6]} 57. Bb5+ {[%clk 0:00:14.6]} 57... Ke6 {[%clk 0:00:23.9]} 58. d7
{[%clk 0:00:13.1]} 58... Ke7 {[%clk 0:00:24.8]} 59. c6 {[%clk 0:00:14.1]} 59...
Be6 {[%clk 0:00:17.5]} 60. Kc5 {[%clk 0:00:07.6]} 60... f5 {[%clk 0:00:18.6]}
61. Kb6 {[%clk 0:00:08.6]} 61... Bxd7 {[%clk 0:00:20]} 62. cxd7 {[%clk
0:00:09.2]} 62... Kd8 {[%clk 0:00:21.5]} 63. Kxa5 {[%clk 0:00:09.9]} 63... b3
{[%clk 0:00:22.8]} 64. Kb4 {[%clk 0:00:09.9]} 64... b2 {[%clk 0:00:24.1]} 65.
Bd3 {[%clk 0:00:11.5]} 65... f4 {[%clk 0:00:25.2]} 66. a5 {[%clk 0:00:05.2]}
66... Kxd7 {[%clk 0:00:23.4]} 67. a6 {[%clk 0:00:06.4]} 67... Kc7 {[%clk
0:00:24.3]} 68. gxf4 {[%clk 0:00:03.3]} 68... g3 {[%clk 0:00:25]} 69. Be4 {[%clk
0:00:04.5]} 69... g2 {[%clk 0:00:22.1]} 70. a7 {[%clk 0:00:05.9]} 70... g1=Q
{[%clk 0:00:22.8]} 71. a8=Q {[%clk 0:00:06.7]} 71... b1=Q+ {[%clk 0:00:21.9]}
72. Bxb1 {[%clk 0:00:08]} 72... Qxb1+ {[%clk 0:00:23.8]} 73. Kc5 {[%clk
0:00:09.5]} 73... Qf5+ {[%clk 0:00:23.7]} 74. Qd5 {[%clk 0:00:08]} 74... Qxf4
{[%clk 0:00:23.6]} 75. Qc6+ {[%clk 0:00:08.2]} 75... Kd8 {[%clk 0:00:24.5]} 76.
Qd5+ {[%clk 0:00:08.9]} 76... Ke7 {[%clk 0:00:25.5]} 77. Qb7+ {[%clk 0:00:07.4]}
77... Kf6 {[%clk 0:00:26.2]} 78. Qc6+ {[%clk 0:00:07.9]} 78... Kg7 {[%clk
0:00:25.4]} 79. Qd7+ {[%clk 0:00:08.9]} 79... Kg6 {[%clk 0:00:23.9]} 80. Qe6+
{[%clk 0:00:08.9]} 80... Kh5 {[%clk 0:00:21.3]} 81. Qe8+ {[%clk 0:00:08.4]}
81... Kh4 {[%clk 0:00:22]} 82. Qh8+ {[%clk 0:00:09.2]} 82... Kg4 {[%clk
0:00:21.3]} 83. Kd5 {[%clk 0:00:09.7]} 83... Qf5+ {[%clk 0:00:19.6]} 84. Kd4
{[%clk 0:00:09.9]} 84... Kg3 {[%clk 0:00:20.9]} 85. Ke3 {[%clk 0:00:08.8]} 85...
Qf4+ {[%clk 0:00:20.4]} 86. Ke2 {[%clk 0:00:09.9]} 86... g4 {[%clk 0:00:21.6]}
87. Qc3+ {[%clk 0:00:09.6]} 87... Kh2 {[%clk 0:00:19.7]} 88. Qh8+ {[%clk
0:00:07.1]} 88... Kg2 {[%clk 0:00:20.6]} 0-1

[Event "*** Titled Tuesday 3|2 Blitz"]
[Site "Chess.com"]
[Date "2017.03.07"]
[Round "2"]
[White "denizozen"]
[Black "spectralsoul"]
[Result "1/2-1/2"]
[WhiteElo "2465"]
[BlackElo "2622"]
[TimeControl "180+2"]
[EndTime "13:17:56 PST"]
[Termination "Game drawn by repetition"]

1. e4 {[%clk 0:03:02]} 1... d6 {[%clk 0:03:00.7]} 2. d4 {[%clk 0:03:00.9]} 2...
Nf6 {[%clk 0:03:02.1]} 3. Nc3 {[%clk 0:03:01.4]} 3... g6 {[%clk 0:03:03.6]} 4.
Nf3 {[%clk 0:03:00.9]} 4... a6 {[%clk 0:03:02.9]} 5. a4 {[%clk 0:03:01.3]} 5...
Bg7 {[%clk 0:03:03.4]} 6. Be2 {[%clk 0:03:02.1]} 6... O-O {[%clk 0:03:03.7]} 7.
O-O {[%clk 0:03:02.8]} 7... b6 {[%clk 0:03:04.8]} 8. e5 {[%clk 0:02:47]} 8...
Ne8 {[%clk 0:02:45.2]} 9. Bf4 {[%clk 0:02:31.5]} 9... Bb7 {[%clk 0:02:40.1]} 10.
Re1 {[%clk 0:02:25.9]} 10... Nc6 {[%clk 0:02:28.8]} 11. Bc4 {[%clk 0:02:08.5]}
11... Nb4 {[%clk 0:02:03.5]} 12. e6 {[%clk 0:01:44.4]} 12... f5 {[%clk
0:01:41.8]} 13. Ng5 {[%clk 0:01:39.6]} 13... Nf6 {[%clk 0:01:42.3]} 14. Nf7
{[%clk 0:01:32.1]} 14... Qe8 {[%clk 0:01:43.5]} 15. Nh6+ {[%clk 0:01:31.7]}
15... Kh8 {[%clk 0:01:44.1]} 16. Nf7+ {[%clk 0:01:33]} 16... Kg8 {[%clk
0:01:45.7]} 17. Nh6+ {[%clk 0:01:34.3]} 17... Kh8 {[%clk 0:01:37.7]} 18. Nf7+
{[%clk 0:01:34.2]} 18... Kg8 {[%clk 0:01:35.7]} 1/2-1/2

[Event "*** Titled Tuesday 3|2 Blitz"]
[Site "Chess.com"]
[Date "2017.03.07"]
[Round "2"]
[White "LawrenceTrent"]
[Black "RamonManon0g"]
[Result "1-0"]
[WhiteElo "2385"]
[BlackElo "2317"]
[TimeControl "180+2"]
[EndTime "13:19:04 PST"]
[Termination "LawrenceTrent won by checkmate"]

1. d4 {[%clk 0:03:02]} 1... Nf6 {[%clk 0:03:00.7]} 2. Bg5 {[%clk 0:03:03.4]}
2... e6 {[%clk 0:03:01.8]} 3. Nd2 {[%clk 0:03:03.2]} 3... h6 {[%clk 0:03:02.8]}
4. Bh4 {[%clk 0:03:04.4]} 4... c5 {[%clk 0:03:02.5]} 5. e4 {[%clk 0:03:05.8]}
5... cxd4 {[%clk 0:03:00.5]} 6. e5 {[%clk 0:03:07.4]} 6... g5 {[%clk 0:03:01.8]}
7. Bg3 {[%clk 0:03:08.8]} 7... Nd5 {[%clk 0:02:58.7]} 8. Ngf3 {[%clk 0:03:10.2]}
8... Nc6 {[%clk 0:02:59.2]} 9. h4 {[%clk 0:03:11.5]} 9... g4 {[%clk 0:02:58.8]}
10. Nh2 {[%clk 0:03:11.7]} 10... h5 {[%clk 0:02:59.8]} 11. Bd3 {[%clk
0:03:07.4]} 11... Bg7 {[%clk 0:02:57.8]} 12. Qe2 {[%clk 0:03:04.6]} 12... Qc7
{[%clk 0:02:47.7]} 13. Nc4 {[%clk 0:03:03.8]} 13... Bf8 {[%clk 0:02:21.9]} 14.
O-O {[%clk 0:02:53.4]} 14... Be7 {[%clk 0:02:21.1]} 15. Nd6+ {[%clk 0:02:54.2]}
15... Bxd6 {[%clk 0:02:22]} 16. exd6 {[%clk 0:02:56.1]} 16... Qb6 {[%clk
0:02:16.1]} 17. f3 {[%clk 0:02:50.9]} 17... Ne3 {[%clk 0:02:07.8]} 18. fxg4
{[%clk 0:02:40.9]} 18... Nxf1 {[%clk 0:02:07.9]} 19. Rxf1 {[%clk 0:02:40.9]}
19... Rg8 {[%clk 0:01:23.6]} 20. g5 {[%clk 0:02:37.5]} 20... Qc5 {[%clk
0:01:04.3]} 21. Qxh5 {[%clk 0:02:34.5]} 21... Nd8 {[%clk 0:00:58.2]} 22. Ng4
{[%clk 0:02:35.1]} 22... Kf8 {[%clk 0:00:20.9]} 23. Qh6+ {[%clk 0:02:31.1]}
23... Rg7 {[%clk 0:00:20]} 24. Be5 {[%clk 0:02:32.8]} 24... Qxe5 {[%clk
0:00:19.5]} 25. Nxe5 {[%clk 0:02:33.6]} 25... b6 {[%clk 0:00:17.4]} 26. Qh8+
{[%clk 0:02:24.9]} 26... Rg8 {[%clk 0:00:17.6]} 27. Ng6+ {[%clk 0:02:26.8]}
27... Ke8 {[%clk 0:00:17.1]} 28. Qxg8# {[%clk 0:02:28.3]} 1-0

[Event "*** Titled Tuesday 3|2 Blitz"]
[Site "Chess.com"]
[Date "2017.03.07"]
[Round "2"]
[White "politeplayer"]
[Black "Schoenbrunn"]
[Result "1-0"]
[WhiteElo "2004"]
[BlackElo "1843"]
[TimeControl "180+2"]
[EndTime "13:19:21 PST"]
[Termination "politeplayer won on time"]

1. e4 {[%clk 0:03:02]} 1... e6 {[%clk 0:02:59.3]} 2. d3 {[%clk 0:03:00]} 2... d5
{[%clk 0:02:34.3]} 3. Nd2 {[%clk 0:02:57.2]} 3... Nf6 {[%clk 0:02:10.7]} 4. Ngf3
{[%clk 0:02:46.7]} 4... b6 {[%clk 0:01:55.9]} 5. exd5 {[%clk 0:02:41.2]} 5...
exd5 {[%clk 0:01:29.1]} 6. Be2 {[%clk 0:02:28.4]} 6... Bd6 {[%clk 0:01:22.1]} 7.
O-O {[%clk 0:02:27.6]} 7... O-O {[%clk 0:01:21.7]} 8. Re1 {[%clk 0:02:20.2]}
8... c5 {[%clk 0:01:18.6]} 9. Nf1 {[%clk 0:02:20]} 9... Nc6 {[%clk 0:01:11.8]}
10. Ng3 {[%clk 0:02:19.2]} 10... Qc7 {[%clk 0:01:06.9]} 11. Bg5 {[%clk
0:02:18.2]} 11... Nd7 {[%clk 0:00:56.8]} 12. c3 {[%clk 0:02:17.9]} 12... h6
{[%clk 0:00:48.1]} 13. Bd2 {[%clk 0:02:13.8]} 13... f5 {[%clk 0:00:40.4]} 14.
Qa4 {[%clk 0:02:11.1]} 14... f4 {[%clk 0:00:38.7]} 15. Nf1 {[%clk 0:02:07.9]}
15... g5 {[%clk 0:00:38.2]} 16. d4 {[%clk 0:02:01.5]} 16... c4 {[%clk
0:00:38.2]} 17. Qc2 {[%clk 0:01:56.4]} 17... Kg7 {[%clk 0:00:30.4]} 18. b3
{[%clk 0:01:51.8]} 18... Nf6 {[%clk 0:00:19.4]} 19. bxc4 {[%clk 0:01:51.3]} 1-0